Cogmind - Beta 15 @@@ ROGUE MODE // 2025.06.16 @ 22:24:10 Player: Duduxx Result: Destroyed by D-53 Grenadier with Mini Grenade Launcher Performance ------------- Evolutions (0) 0 Regions Visited (2) 400 Robots Destroyed (18) 90 Value Destroyed (312) 312 Prototype IDs (0) 0 Alien Tech Used (0) 0 Bonus (0) 0 TOTAL SCORE: 802 Bonus ------- None Cogmind --------- Core Integrity 0/250 Matter 290/300 Energy 64/100 System Corruption 2% Temperature Cool (0) Movement Rolling (95) Ox1 Location -10/Mines Parts ------- > --- POWER (1) -------- (None) > --- PROPULSION (2) --- Wheel Wheel > --- UTILITY (2) ------ High-capacity Storage Unit > --- WEAPON (2) ------- (None) > --- INVENTORY (20) --- Light Treads Light Treads Heat Sink Medium Storage Unit Weight Redist. System Improved Terrain Scanner Improved Targeting Computer Improved Targeting Computer Improved Targeting Computer Improved Targeting Computer EM Pulse Gun EM Pulse Gun EM Pulse Gun Beam Rifle Beam Rifle Beam Cannon Grenade Launcher Peak State ------------ > --- POWER ------------ Ion Engine > --- PROPULSION ------- Wheel Compact Wheel > --- UTILITY ---------- High-capacity Storage Unit Improved Terrain Scanner > --- WEAPON ----------- Beam Rifle Beam Rifle > --- INVENTORY -------- Light Ion Engine Light Treads Light Treads Compact Wheel Medium Storage Unit Weight Redist. System Improved Targeting Computer Improved Targeting Computer Improved Targeting Computer EM Pulse Gun EM Pulse Gun EM Pulse Gun EM Pulse Gun Beam Rifle Beam Cannon Grenade Launcher [Rating: 13] Favorites ----------- Power Ion Engine Engine Ion Engine Propulsion Compact Wheel Treads Light Treads Wheel Compact Wheel Utility High-capacity Storage Unit Device Improved Terrain Scanner Storage High-capacity Storage Unit Weapon Beam Rifle Energy Gun Beam Rifle Ballistic Gun Assault Rifle Build | -11 -10 -10 ------- Run | Yrd Mat Min Slots Evolved . | . . . Power . | . . . Propulsion . | . . . Utility . | . . . Weapon . | . . . Parts Attached 19 | 7 10 2 Power 3 | 1 2 . Engine 3 | 1 2 . Core . | . . . Reactor . | . . . Propulsion 7 | 2 3 2 Treads 2 | 2 . . Leg . | . . . Wheel 5 | . 3 2 Hover . | . . . Flight . | . . . Utility 4 | 2 2 . Device 2 | 1 1 . Storage 2 | 1 1 . Processor . | . . . Hackware . | . . . Protection . | . . . Artifact . | . . . Weapon 5 | 2 3 . Energy Gun 4 | 1 3 . Energy Cannon . | . . . Ballistic Gun 1 | 1 . . Ballistic Cannon . | . . . Launcher . | . . . Special Weapon . | . . . Impact Weapon . | . . . Slashing Weapon . | . . . Piercing Weapon . | . . . Special Melee Weapon . | . . . Unidentified Prototypes . | . . . Corrupted Parts 1 | . . 1 System Corruption 1 | . . 1 Parts Lost 8 | . 2 6 Power 3 | . 2 1 Propulsion 2 | . . 2 Utility 1 | . . 1 Weapon 2 | . . 2 Highest Loss Streak 6 | . 2 6 To Critical Strikes . | . . . Average Backups 11 | 3 12 19 Power . | . . . Propulsion 2 | 1 2 4 Utility 3 | . 3 8 Weapon 4 | . 5 7 Tool/Special . | . . . Unused Backups 14 | . 1 13 Power . | . . . Propulsion . | . . . Utility 7 | . . 7 Weapon 7 | . 1 6 Tool/Special . | . . . Average Slot Usage (%) 99 | . 99 100 Engine 13 | . 13 14 Treads 4 | . 5 . Wheel 23 | . 22 28 Device 14 | . 14 14 Storage 14 | . 14 14 Energy Gun 22 | . 21 28 Ballistic Gun 5 | . 6 . Peak Build Rating 13 | 9 13 10 Average Rating 9 | 5 10 9 On Entrance 6 | . 9 10 Naked Turns . | . . . Heaviest Build 52 | 15 52 51 Greatest Support 40 | 40 40 32 Greatest Overweight (x) 3 | 2 3 1 Average Overweight (x) . | . . 1 Largest Inventory Capacity 20 | 8 20 20 Average Capacity 15 | 7 17 20 Most Carried 19 | 4 19 19 Average Carried 11 | 3 12 18 Final Capacity 20 | 8 20 20 Final Carried 19 | 4 19 17 Class Distribution -------------------- 100% | Mutant Dominant Class ---------------- Mutant | -10/Materials Mutant | -10/Mines Resources | -11 -10 -10 ----------- Run | Yrd Mat Min Matter Collected 478 | 306 172 . Remotely . | . . . Salvage Created 584 | 154 430 . Parts 44 | 12 32 . Haulers Intercepted 1 | . 1 . Recyclers Shooed 1 | . . 1 Parts Field Recycled . | . . . Retrieved Matter . | . . . Parts Self-Destructed . | . . . Prevented . | . . . Kills | -11 -10 -10 ------- Run | Yrd Mat Min Combat Hostiles Destroyed 10 | . 10 . Guns 9 | . 9 . AOE 1 | . 1 . Classes Destroyed 6 | 2 4 . Worker 1 | . 1 . Tunneler 5 | 4 1 . Hauler 1 | . 1 . Recycler 1 | 1 . . Swarmer 3 | . 3 . Grunt 7 | . 7 . Best Kill Streak 4 | 2 4 . Combat Bots Only 4 | . 4 . Max Kills in Single Turn 2 | 1 2 . Gunslinging 1 | . 1 . Exploded 1 | . 1 . Melee . | . . . Uniques/NPCs Destroyed . | . . . Combat | -11 -10 -10 -------- Run | Yrd Mat Min Hostile Shots Fired 57 | . 54 3 Missed 16 | . 16 . Hits 41 | . 38 3 Projectile 41 | . 38 3 AOE 4 | . . 4 Damage Taken 736 | . 559 177 Core 253 | . 221 32 Absorbed by Shields . | . . . Core Remaining (%) 100 | 100 . . Volleys Fired 53 | 12 38 3 Largest 2 | 2 2 2 Hottest 112 | 70 112 96 Shots Fired 101 | 24 71 6 Gun 101 | 24 71 6 Cannon . | . . . Launcher . | . . . Special . | . . . Kinetic 28 | 12 16 . Thermal 60 | 12 45 3 Explosive . | . . . Electromagnetic 13 | . 10 3 Robot Hit Streak 7 | 4 7 3 Robot Miss Streak 3 | 2 3 2 Penetration Max . | . . . Secondary Targets 2 | . 2 . Max Gunslinging Chain 1 | . 1 . Shots Hit Robots 55 | 14 38 3 Core Hits 24 | 5 18 1 Critical Kills . | . . . Critical Parts Destroyed . | . . . Critical Strikes 1 | . 1 . Burn 1 | . 1 . Melee Attacks . | . . . Impact . | . . . Slashing . | . . . Piercing . | . . . Sneak Attacks . | . . . Combat Hostiles . | . . . Follow-up Attacks . | . . . Damage Inflicted 859 | 194 595 70 Guns 770 | 194 537 39 Cannons . | . . . Explosions 46 | . 46 . Melee . | . . . Ramming 43 | . 12 31 Kinetic 247 | 106 141 . Thermal 467 | 88 350 29 Explosive . | . . . Electromagnetic 102 | . 92 10 Impact . | . . . Slashing . | . . . Piercing . | . . . Highest Corruption 2 | . 1 2 Average Corruption 1 | . 1 1 Corruption Purged . | . . . Corruption Blocked . | . . . Effects 3 | . 2 1 Matter Fused 1 | . 1 . Energy Discharges 1 | . . 1 Misfires 1 | . 1 . Overload Shots . | . . . Overflow Damage . | . . . Projectiles . | . . . Explosions . | . . . Melee . | . . . Knockbacks . | . . . Impact . | . . . Kinetic . | . . . Secondary . | . . . Self-Inflicted Damage 29 | . 14 15 Shots 1 | . 1 . Rammed 2 | . 1 1 Targets Rammed 2 | . 1 1 Kicked . | . . . Crushed . | . . . Highest Temperature 659 | 54 659 16 Average Temperature 189 | 19 246 9 Received Heat Transfer 180 | . 180 . Effects 28 | . 28 . Shutdowns 4 | . 4 . Energy Bleed 6 | . 6 . Interference 2 | . 2 . Matter Decay 1 | . 1 . Short Circuit 1 | . 1 . Damage (major) 10 | . 10 . Damage (core) 4 | . 4 . Siege Activations . | . . . Martial Activations . | . . . Shielding Activations . | . . . Robots Disrupted . | . . . Combat Hostiles . | . . . Robots Corrupted . | . . . Combat Hostiles . | . . . Parts Fried . | . . . Impact Corruptions . | . . . Robots Melted . | . . . Combat Hostiles . | . . . Parts Melted . | . . . Heat Transferred 1271 | 259 938 74 Parts Sabotaged . | . . . Parts Stolen . | . . . Parts Stripped . | . . . Power Chain Reactions 1 | . 1 . Alert | -11 -10 -10 ------- Run | Yrd Mat Min Maximum Alert Level . | . . . Low Security (%) 100 | 100 100 100 Level 1 . | . . . Level 2 . | . . . Level 3 . | . . . Level 4 . | . . . Level 5 . | . . . High Security . | . . . Max Security . | . . . Peak Influence 103 | 10 103 23 Initial 23 | . . 23 Average 34 | 1 50 8 Influence Increases 301 | 25 276 . Destroy 0b10 Robot/C 200 | . 200 . Destroy 0b10 Robot/NC 40 | 25 15 . Destroy Leader 32 | . 32 . Successful Hack 8 | . 8 . Destroy Structure 6 | . 6 . Lose Combat Pursuer 15 | . 15 . Influence Decreases 301 | 25 216 60 Entered New Map 37 | . . 37 Time Decay 244 | 25 196 23 Lost Part 20 | . 20 . Squads Dispatched 2 | . 2 . Investigation 2 | . 2 . Extermination . | . . . Reinforcement . | . . . Assault . | . . . Garrison . | . . . Intercept . | . . . Searches Triggered . | . . . Construction Impeded . | . . . Haulers Reinforced . | . . . Active Scanning Responses . | . . . Cargo Convoy Interrupts . | . . . Stealth | -11 -10 -10 --------- Run | Yrd Mat Min Distress Signals 1 | . 1 . Communications Jammed . | . . . Distress Signals . | . . . Times Spotted 16 | . 13 3 Peak Tracking Total 6 | . 6 3 Tactical Retreats 1 | . 1 . Traps | -11 -10 -10 ------- Run | Yrd Mat Min Traps Triggered 2 | . 2 . Indirectly . | . . . Trap Hack Attempts . | . . . Triggered . | . . . Disarmed . | . . . Reprogrammed . | . . . Reused . | . . . Traps Extracted . | . . . Installed . | . . . Triggered . | . . . Machines | -11 -10 -10 ---------- Run | Yrd Mat Min Machines Disabled . | . . . Max in Single Turn . | . . . Machines Repaired . | . . . Machines Dismantled . | . . . Machines Sabotaged . | . . . Overloaded Fab Kills . | . . . Hacking | -11 -10 -10 --------- Run | Yrd Mat Min Machines Accessed 2 | . 2 . Terminals 2 | . 2 . Fabricators . | . . . Repair Stations . | . . . Recycling Units . | . . . Scanalyzers . | . . . Garrison Access . | . . . Total Hacks 8 | . 8 . Successful 2 | . 2 . Failed 6 | . 6 . Catastrophic 3 | . 3 . Database Lockouts . | . . . Manual 8 | . 8 . Terminals 8 | . 8 . Fabricators . | . . . Repair Stations . | . . . Recycling Units . | . . . Scanalyzers . | . . . Garrison Access . | . . . Terminal Hacks 2 | . 2 . Branch Access Points 1 | . 1 . Emergency Access Points 1 | . 1 . Fabricator Hacks . | . . . Repair Station Hacks . | . . . Recycling Unit Hacks . | . . . Scanalyzer . | . . . Garrison Access Hacks . | . . . Unauthorized Hacks . | . . . Terminals . | . . . Fabricators . | . . . Repair Stations . | . . . Recycling Units . | . . . Scanalyzers . | . . . Garrison Access . | . . . Data Cores Recovered . | . . . Used . | . . . Hacking Detections 2 | . 2 . Full Trace Events 2 | . 2 . Feedback Events . | . . . Feedback Blocked . | . . . Robot Schematics Acquired . | . . . Robots Built . | . . . Authchips . | . . . Time . | . . . Total Robot Build Rating . | . . . Part Schematics Acquired . | . . . Parts Built . | . . . Authchips . | . . . Time . | . . . Total Part Build Rating . | . . . Parts Repaired . | . . . Time . | . . . Parts Recycled . | . . . Recycled Matter . | . . . Retrieved Matter . | . . . Retrieved Components . | . . . Parts Scanalyzed . | . . . Part Schematics Acquired . | . . . Parts Damaged . | . . . Bothacking | -11 -10 -10 ------------ Run | Yrd Mat Min Used RIF Installer . | . . . Robots Hacked . | . . . Non-combat . | . . . Combat . | . . . Robot Hacks Applied . | . . . Relay Couplers Released . | . . . Fabnet Peak Effective % . | . . . Robots Rewired . | . . . Allies Hacked . | . . . Hacks Repelled . | . . . Allies | -11 -10 -10 -------- Run | Yrd Mat Min Total Allies . | . . . Largest Group . | . . . Highest-Rated Group . | . . . Highest-Rated Ally . | . . . Total Orders . | . . . Ally Attacks . | . . . Total Damage . | . . . Kills . | . . . Allies Corrupted . | . . . Allies Melted . | . . . Intel | -11 -10 -10 ------- Run | Yrd Mat Min Active Infowar (turns) 385 | 24 361 . Terrain 385 | 24 361 . Robot Analysis Total . | . . . Derelict Logs Recovered 1 | . . 1 Drone Launches . | . . . Drone Recoveries . | . . . Exploration | -11 -10 -10 ------------- Run | Yrd Mat Min Turns Passed 784 | 178 521 85 Spaces Moved 463 | 84 318 61 Core 11 | 11 . . Treads 128 | 73 55 . Legs . | . . . Wheels 324 | . 263 61 Hover . | . . . Flight . | . . . Fastest Speed 50 | 50 90 115 Average Speed 124 | 152 118 115 Slowest Speed 160 | 160 160 115 Overloaded Moves . | . . . Propulsion Burnouts . | . . . Robots Hopped . | . . . Potential Cave-ins . | . . . Cave-ins Triggered . | . . . Exploration Rate (%) 20 | 6 45 11 Regions Visited 2 Branch Regions 1 Pre-discovered Areas . | . . . Known Exits Taken 1 | . 1 . Unknown Exits Taken 1 | 1 . . Scrap Searched 1 | . . 1 Spaces Dug . | . . . Terrain Destroyed 6 | . 6 . Melee . | . . . Projectile . | . . . AOE 6 | . 6 . Terrain Rammed . | . . . Walls Destroyed . | . . . Machines Disabled . | . . . Actions | -11 -10 -10 --------- Run | Yrd Mat Min Total 571 | 106 395 70 Wait 5 | . 2 3 Move 461 | 83 317 61 Hop . | . . . Pick Up 20 | 4 16 . Fast Attach 12 | 7 5 . Attach 5 | . 3 2 Detach 6 | . 6 . Swap 2 | . 2 . Drop 5 | . 5 . Fire 53 | 12 38 3 Melee . | . . . Ram 2 | . 1 1 Kick . | . . . Crush . | . . . Escape Stasis . | . . . Rewire . | . . . Trap . | . . . Miscellaneous . | . . . Route ------- -11/Scrapyard -10/Materials (discovered 3 exits: [*Mat] / *Min x2) -10/Mines History --------- Turn | Location | Event 15 | -11/Scrapyard | Discovered new exit (range 16) 179 | -11/Scrapyard | Entered Materials 193 | -10/Materials | Discovered new exit (range 14) 287 | -10/Materials | Discovered new exit (range 8) 300 | -10/Materials | Build established: Mutant 400 | -10/Materials | Discovered new exit (range 3) 557 | -10/Materials | Core integrity fell below 50% 566 | -10/Materials | Core integrity fell below 20% 626 | -10/Materials | Identified exit to Mines 700 | -10/Materials | Entered Mines 715 | -10/Mines | Assembled infested the area 720 | -10/Mines | Assisted by a Guerilla fighting off Assembled 743 | -10/Mines | Learned Materials trap positions 785 | -10/Mines | Destroyed by D-53 Grenadier with Mini Grenade Launcher Last Messages --------------- 00722_ System corrupted: Energy discharge (-67). 00742_ Slammed into R-06 Scavenger. 00743_ Acquired derelict log, extracted data. Data stored: Materials trap records. 00757_ K-01 Serf collects debris. 00758_ R-06 Scavenger destroyed. 00760_ K-01 Serf collects debris. 00775_ as-29970 sneak attacks. 00775_ K-01 Serf destroyed. 00781_ as-29970 sneak attacks. 00781_ K-01 Serf destroyed. 00783_ Com. Wheel destroyed. 00783_ EM Pulse Gun destroyed. 00783_ Ion Engine destroyed. 00783_ K-01 Serf destroyed. 00783_ Com. Wheel destroyed. 00783_ as-29970 destroyed. 00784_ Integrated Corrupted Wheel (+1). 00785_ Beam Rifle destroyed. 00785_ Heat Sink destroyed. Map ----- +----------------------------------------------------+ | ??????????????????????????????????????????? | | ??????????????????????????????????????????? | | ??????????????????????????????????????????? | | ??????????????????????????????????????????? | | ??????????????????????????????????????????? | | ??????????????????????????????????????????? | | ??????????????????????????????????????????? | | ??????????????????????????????????????????? | | ??????????????????????????????????????????? | | ??????????????????????????????????????????? | | ??????????????????????????????????????????? | | ??????????????????????????????????????????? | | ??????????????????????????????????????????? | | ??????????????????????????????????????????? | | ??????????????????????????????????????????? | | ??????????????????????????????????????????? | | ??????????????????????????????????????????? | | ??????????????????????????????????????????? | | ??????????????????????????????????????????? | | ??????????????????????????????????????????? | | ???#???????????###?###????????????????????? | | ???# ?????????## # ##???????????????????? | | ???#% ????????# ##??????????????????? | | ???#!!######### #??????????????????? | | ???# = #??????????????????? | | ???# *%! ! @ d#??????????????????? | | ???###### ##### #??????????????????? | | ????????# #???# *d#??????????????????? | | ????????# #???# # #??????????????????? | | ????????# #???####### ?????????????????? | | ????????# ########??? ????????????????? | | ????????# #???? ??????????????? | | ????????######## #???? ?????????????? | | ???????????????#=#????? % ????????????? | | ???????????????#%#?????? ???????????? | | ???????????????#!#?????? ????????????? | | ???????????????#=#??????? ????????????? | | ???????????????# #???????? ??????????????? | | ???????????????# ####?????????????????????? | | ???????????????# #?????????????????????? | | ???????????????#### #?????????????????????? | | ??????????????????# #?????????????????????? | | ????????????##????# #?????????????????????? | | ???????????## #### #?????????????????????? | | ???????????# ##????????????????????? | | ???????????# #????????????????????? | | ???????????## ##????????????????????? | | ????????????## ##?????????????????????? | | ?????????????## ##??????????????????????? | | ??????????????#####???????????????????????? | +----------------------------------------------------+ Best States ------------- Heat Dissipation 35 Energy Generation 10 Energy Capacity 250 Matter Stores 300 Matter Capacity 300 Sight Range 16 Terrain Scan Range 16 Terrain Scan Density 10 Evasion (%) 42 Recoil Reduction 2 Item Schematics ----------------- None Robot Schematics ------------------ None Fabricated ------------ Nothing Repaired ---------- Nothing Alien Tech Used ----------------- None Achievements -------------- None Challenges ------------ None Game ------ Seed CargoBoreMapper Manual? 0 Play Time 00:06:03 Cumulative 111.5 hours Start 2025.06.16 @ 22:18:47 End 2025.06.16 @ 22:24:10 Sessions 1 Manual Loads 0 Difficulty Rogue Special Mode None Game No. 217 Rogue 217 Adventurer 0 Explorer 0 Win Type - Total 0 Types 0/0/0/0/0/0/0/0/0/0 Lore% 30 Gallery% 45 Achievement% 35 Wizard Run 0 Options --------- Layout 1 ASCII 0 Keyboard 1 Movement Arrows Keybinds 0 Fullscreen 2 Font 24/Smallcaps Map View 50x35 Zoom Use 0% Tactical HUD 1 Map Filters NONE Filters NONE Steam 1 RUN: 14726b80-d5aa-4925-a344-bac85d6e96bb